fUSD/lending_fUSD_20260608
["ID","MTS","AMOUNT","RATE_DAILY","PERIOD"]
[424443688,1780903838000,-103.64521749,0.00013608,2]
[424443689,1780903838000,-434.82,0.00013608,2]
[424443728,1780903840000,-166.66,0.00014483,2]
[424443732,1780903840000,-250.35241809,0.00014609,2]
[424443727,1780903840000,-300.0,0.000143,2]
[424443726,1780903840000,-150.0,0.000143,2]
[424443723,1780903840000,-814.221,0.000142,2]
[424443725,1780903840000,-166.66,0.00014287,2]
[424443721,1780903840000,-166.66,0.00014091,2]
[424443733,1780903840000,-500.0,0.00014626,2]
[424443722,1780903840000,-157.12433485,0.000142,2]
[424443724,1780903840000,-1840.15402341,0.0001421,7]
[424443739,1780903840000,-184.636,0.00014801,2]
[424443734,1780903840000,-544.08566082,0.00014626,2]
[424443735,1780903840000,-215.86427702,0.00014646,2]
[424443737,1780903840000,-350.0,0.00014735,2]
[424443736,1780903840000,-166.66,0.00014679,2]
[424443748,1780903840000,-500.0,0.0001498,2]
[424443730,1780903840000,-2000.0,0.000146,2]
[424443729,1780903840000,-2877.1303,0.00014488,2]
[424443731,1780903840000,-2000.0,0.000146,2]
[424443740,1780903840000,-915.248,0.00014801,2]
[424443742,1780903840000,-10265.5628898,0.00014868,2]
[424443743,1780903840000,-200.0,0.0001488,2]
[424443752,1780903840000,-500.0,0.00014998,2]
[424443753,1780903840000,-500.0,0.00014998,2]
[424443738,1780903840000,-278.7252,0.00014768,2]
[424443720,1780903840000,-2324.80038927,0.00014,2]
[424443715,1780903840000,-200.0,0.00013932,2]
[424443718,1780903840000,-200.0,0.00013932,2]
[424443693,1780903840000,-90.9042354,0.00013699,2]
[424443694,1780903840000,-500.0,0.00013768,2]
[424443695,1780903840000,-166.66,0.00013895,2]
[424443697,1780903840000,-250.0,0.00013932,2]
[424443698,1780903840000,-600.0,0.00013932,2]
[424443696,1780903840000,-150.0,0.0001393,2]
[424443699,1780903840000,-2500.0,0.00013932,2]
[424443700,1780903840000,-2500.0,0.00013932,2]
[424443702,1780903840000,-2500.0,0.00013932,2]
[424443712,1780903840000,-600.0,0.00013932,2]
[424443701,1780903840000,-2500.0,0.00013932,2]
[424443719,1780903840000,-569.0,0.00013973,2]
[424443703,1780903840000,-2500.0,0.00013932,2]
[424443707,1780903840000,-300.0,0.00013932,2]
[424443705,1780903840000,-300.0,0.00013932,2]
[424443710,1780903840000,-600.0,0.00013932,2]
[424443706,1780903840000,-300.0,0.00013932,2]
[424443704,1780903840000,-300.0,0.00013932,2]
[424443708,1780903840000,-300.0,0.00013932,2]
[424443709,1780903840000,-600.0,0.00013932,2]
[424443714,1780903840000,-200.0,0.00013932,2]
[424443713,1780903840000,-193.33491251,0.00013932,2]
[424443716,1780903840000,-200.0,0.00013932,2]
[424443717,1780903840000,-200.0,0.00013932,2]
[424443711,1780903840000,-600.0,0.00013932,2]
[424443749,1780903840000,-500.0,0.00014988,2]
[424443770,1780903840000,-500.0,0.00014999,2]
[424443746,1780903840000,-15897.6437001,0.000149,2]
[424443779,1780903840000,-500.0,0.00014999,2]
[424443780,1780903840000,-509.06399595,0.00014999,2]
[424443781,1780903840000,-309.64428414,0.00014999,2]
[424443786,1780903840000,-500.0,0.00014999,2]
[424443788,1780903840000,-500.0,0.00014999,2]
[424443787,1780903840000,-500.0,0.00014999,2]
[424443785,1780903840000,-500.0,0.00014999,2]
[424443784,1780903840000,-500.0,0.00014999,2]
[424443789,1780903840000,-500.0,0.00014999,2]
[424443783,1780903840000,-500.0,0.00014999,2]
[424443790,1780903840000,-500.0,0.00014999,2]
[424443778,1780903840000,-238.12837646,0.00014999,2]
[424443792,1780903840000,-500.0,0.00014999,2]
[424443793,1780903840000,-500.0,0.00014999,2]
[424443791,1780903840000,-500.0,0.00014999,2]
[424443795,1780903840000,-500.0,0.00014999,2]
[424443799,1780903840000,-515.37219581,0.00014999,2]
[424443800,1780903840000,-500.0,0.00014999,2]
[424443796,1780903840000,-551.97576766,0.00014999,2]
[424443797,1780903840000,-500.0,0.00014999,2]
[424443798,1780903840000,-500.0,0.00014999,2]
[424443802,1780903840000,-500.0,0.00014999,2]
[424443801,1780903840000,-500.0,0.00014999,2]
[424443745,1780903840000,-750.55,0.000149,2]
[424443794,1780903840000,-500.0,0.00014999,2]
[424443776,1780903840000,-500.0,0.00014999,2]
[424443782,1780903840000,-255.18199672,0.00014999,2]
[424443771,1780903840000,-500.0,0.00014999,2]
[424443747,1780903840000,-5239.83457718,0.000149,2]
[424443750,1780903840000,-120979.18828967,0.00014989,2]
[424443741,1780903840000,-4920.90826675,0.00014868,2]
[424443751,1780903840000,-151.0,0.00014997,2]
[424443754,1780903840000,-500.0,0.00014999,2]
[424443755,1780903840000,-500.0,0.00014999,3]
[424443758,1780903840000,-500.0,0.00014999,6]
[424443773,1780903840000,-500.0,0.00014999,2]
[424443756,1780903840000,-500.0,0.00014999,4]
[424443761,1780903840000,-500.0,0.00014999,9]
[424443762,1780903840000,-500.0,0.00014999,2]
[424443759,1780903840000,-500.0,0.00014999,7]
[424443760,1780903840000,-500.0,0.00014999,8]
[424443763,1780903840000,-500.0,0.00014999,2]
[424443757,1780903840000,-500.0,0.00014999,5]
[424443775,1780903840000,-256.31,0.00014999,2]
[424443777,1780903840000,-500.0,0.00014999,2]
[424443772,1780903840000,-500.0,0.00014999,2]
[424443769,1780903840000,-500.0,0.00014999,2]
[424443774,1780903840000,-500.0,0.00014999,2]
[424443767,1780903840000,-500.0,0.00014999,2]
[424443766,1780903840000,-500.0,0.00014999,2]
[424443765,1780903840000,-1128.06432123,0.00014999,5]
[424443764,1780903840000,-1128.06432123,0.00014999,5]
[424443768,1780903840000,-500.0,0.00014999,2]
[424443815,1780903841000,-300.0,0.00014999,2]
[424443803,1780903841000,-500.0,0.00014999,2]
[424443804,1780903841000,-500.0,0.00014999,2]
[424443805,1780903841000,-500.0,0.00014999,2]
[424443808,1780903841000,-500.0,0.00014999,2]
[424443810,1780903841000,-500.0,0.00014999,2]
[424443806,1780903841000,-500.0,0.00014999,2]
[424443809,1780903841000,-500.0,0.00014999,2]
[424443811,1780903841000,-500.0,0.00014999,2]
[424443812,1780903841000,-500.0,0.00014999,2]
[424443818,1780903841000,-4716.0,0.00015,5]
[424443807,1780903841000,-500.0,0.00014999,2]
[424443816,1780903841000,-300.0,0.00014999,2]
[424443825,1780903841000,-365.64095733,0.00015,2]
[424443824,1780903841000,-43512.79744818,0.00015,2]
[424443823,1780903841000,-931.85130686,0.00015,2]
[424443820,1780903841000,-2000.0,0.00015,2]
[424443822,1780903841000,-956.79071888,0.00015,2]
[424443814,1780903841000,-556.2651521,0.00014999,2]
[424443826,1780903841000,-386.85861782,0.00015,2]
[424443819,1780903841000,-3566.0,0.00015,5]
[424443813,1780903841000,-500.0,0.00014999,2]
[424443817,1780903841000,-666.0,0.00014999,2]
[424443821,1780903841000,-4820168.74406877,0.00015,2]
[424443839,1780903843000,-500.0,0.00014999,2]
[424443841,1780903843000,-246.79614873,0.00014999,2]
[424443842,1780903843000,-299.20385127,0.00014999,2]
[424443840,1780903843000,-123.72,0.00014999,2]
[424443844,1780903843000,-229.06899864,0.00014999,2]
[424443845,1780903843000,-250.65217302,0.00014999,2]
[424443843,1780903843000,-200.79614873,0.00014999,2]
[424443847,1780903843000,-29.37738101,0.00014999,2]
[424443846,1780903843000,-249.34782698,0.00014999,2]
[424443854,1780903846000,-130.69314864,0.00014999,2]
[424443853,1780903846000,-169.38,0.00014638,2]
[424443857,1780903846000,-57833.33136,0.00015,2]
[424443856,1780903846000,-328799.77453529,0.00015,2]
[424443855,1780903846000,-267.71278057,0.00014999,2]
[424443863,1780904007000,861.95,0.00030137,120]
[424443870,1780904456000,247.2307117,0.0003013,120]
[424443886,1780904749000,1915.0,0.00030136,120]
[424443888,1780904788000,2410.0,0.00030136,120]
[424443895,1780904901000,1198.81,0.00029986,120]
[424443897,1780904902000,1198.81,0.00029836,120]
[424443896,1780904902000,1172.0,0.0003,120]
[424443898,1780904903000,1198.81,0.00029685,120]
[424443900,1780904904000,2055.11,0.00029986,120]
[424443902,1780904951000,1859.25,0.00030136,120]
[424443903,1780904951000,1859.25,0.00030136,120]
[424443904,1780904952000,1859.25,0.00030136,120]
[424443905,1780904952000,1859.25,0.00030136,120]
[424443909,1780904957000,-151.0,0.00012648,2]
[424443908,1780904957000,-151.0,0.00012648,2]
[424443906,1780904957000,-151.0,0.00012648,2]
[424443907,1780904957000,-151.0,0.00012648,2]
[424443929,1780905032000,-150.0,0.00013899,2]
[424443928,1780905032000,-500.0,0.00013899,2]
[424443933,1780905032000,-500.0,0.00013899,2]
[424443935,1780905032000,-500.0,0.00013899,2]
[424443944,1780905032000,-600.0,0.00013913,2]
[424443943,1780905032000,-2500.0,0.00013913,2]
[424443940,1780905032000,-2500.0,0.00013913,2]
[424443932,1780905032000,-500.0,0.00013899,2]
[424443938,1780905032000,-452.40503093,0.00013899,2]
[424443939,1780905032000,-2500.0,0.00013913,2]
[424443936,1780905032000,-507.8,0.00013899,2]
[424443937,1780905032000,-47.59496907,0.00013899,2]
[424443941,1780905032000,-2500.0,0.00013913,2]
[424443934,1780905032000,-507.8,0.00013899,2]
[424443927,1780905032000,-500.0,0.00013899,2]
[424443923,1780905032000,-200.0,0.00013699,2]
[424443922,1780905032000,-215.86427702,0.00013676,2]
[424443924,1780905032000,-166.66,0.00013699,2]
[424443921,1780905032000,-371.91,0.00013632,2]
[424443926,1780905032000,-500.0,0.00013899,2]
[424443930,1780905032000,-500.0,0.00013899,2]
[424443920,1780905032000,-150.0,0.00013503,2]
[424443931,1780905032000,-500.0,0.00013899,2]
[424443918,1780905032000,-150.0,0.00013488,2]
[424443919,1780905032000,-150.0,0.00013488,2]
[424443917,1780905032000,-82.82075391,0.00013362,2]
[424443916,1780905032000,-76.23924609,0.00013362,2]
[424443914,1780905032000,-150.0,0.00013191,2]
[424443915,1780905032000,-193.56075391,0.00013261,2]
[424443942,1780905032000,-2500.0,0.00013913,2]
[424443925,1780905032000,-166.66,0.00013836,2]
[424443945,1780905032000,-463.51238155,0.00013913,2]
[424443956,1780905032000,-300.0,0.00013913,2]
[424443984,1780905032000,-350.0,0.00014376,2]
[424443991,1780905032000,-308.93914437,0.000145,5]
[424443988,1780905032000,-900.0,0.000144,5]
[424443987,1780905032000,-6.70626456,0.00014384,2]
[424443978,1780905032000,-151.9544081,0.00014199,2]
[424443986,1780905032000,-159.95373544,0.00014384,2]
[424443989,1780905032000,-646.20542762,0.00014421,2]
[424443990,1780905032000,-444.58877165,0.000145,5]
[424443982,1780905032000,-314.16688825,0.000143,5]
[424443979,1780905032000,-400.0,0.000142,5]
[424443981,1780905032000,-385.83311175,0.000143,5]
[424443980,1780905032000,-166.66,0.00014247,2]
[424443977,1780905032000,-166.66,0.0001411,2]
[424443975,1780905032000,-17.60021988,0.00014,2]
[424443976,1780905032000,-200.0,0.000141,5]
[424443972,1780905032000,-232.39978012,0.00014,2]
[424443970,1780905032000,-166.66,0.00013973,2]
[424443967,1780905032000,-254.21445797,0.00013921,2]
[424443958,1780905032000,-300.0,0.00013913,2]
[424443959,1780905032000,-300.0,0.00013913,2]
[424443947,1780905032000,-200.0,0.00013913,2]
[424443953,1780905032000,-200.0,0.00013913,2]
[424443948,1780905032000,-200.0,0.00013913,2]
[424443949,1780905032000,-102.53590019,0.00013913,2]
[424443951,1780905032000,-97.46409981,0.00013913,2]
[424443964,1780905032000,-582.1843856,0.00013913,2]
[424443960,1780905032000,-300.0,0.00013913,2]
[424443962,1780905032000,-600.0,0.00013913,2]
[424443963,1780905032000,-600.0,0.00013913,2]
[424443965,1780905032000,-153.77940277,0.00013913,2]
[424443966,1780905032000,-46.22059723,0.00013913,2]
[424443961,1780905032000,-300.0,0.00013913,2]
[424443946,1780905032000,-136.48761845,0.00013913,2]
[424443992,1780905033000,-346.47208398,0.000145,5]
[424443995,1780905033000,-423.54319189,0.0001451,2]
[424443994,1780905033000,-77.36838086,0.0001451,2]
[424443993,1780905033000,-115.63161914,0.0001451,2]
[424444014,1780905038000,-200.0,0.000149,5]
[424444025,1780905038000,-500.0,0.00014997,2]
[424444026,1780905038000,-3214.3278007,0.00014997,2]
[424444024,1780905038000,-170.0,0.00014997,2]
[424444022,1780905038000,-500.0,0.00014997,2]
[424444020,1780905038000,-500.0,0.00014997,2]
[424444016,1780905038000,-151.0,0.00014997,2]
[424444017,1780905038000,-2650.3663772,0.00014997,2]
[424444021,1780905038000,-700.0,0.00014997,2]
[424444023,1780905038000,-3400.6097464,0.00014997,2]
[424444019,1780905038000,-40300.1828423,0.00014997,2]
[424444018,1780905038000,-500.0,0.00014997,2]
[424444015,1780905038000,-183.07272168,0.00014925,2]
[424444012,1780905038000,-655.43590005,0.000149,2]
[424444027,1780905038000,-1017.94100237,0.00014999,5]
[424444007,1780905038000,-200.0,0.000148,5]
[424444009,1780905038000,-732.199,0.00014842,2]
[424444006,1780905038000,-350.0,0.00014752,2]
[424444008,1780905038000,-184.63798022,0.00014842,2]
[424444004,1780905038000,-200.0,0.000147,5]
[424444005,1780905038000,-152.0,0.00014748,7]
[424444010,1780905038000,-200.0,0.0001488,2]
[424444002,1780905038000,-200.0,0.000146,5]
[424444013,1780905038000,-10561.18404488,0.000149,3]
[424444003,1780905038000,-350.0,0.00014672,2]
[424444001,1780905038000,-171.67852498,0.0001451,2]
[424443999,1780905038000,-1114.24376427,0.0001451,2]
[424444000,1780905038000,-155.35779909,0.0001451,2]
[424444011,1780905038000,-500.0,0.00014899,2]
[424444032,1780905038000,-500.0,0.00014999,2]
[424444038,1780905038000,-500.0,0.00014999,2]
[424444030,1780905038000,-1128.06432123,0.00014999,5]
[424444060,1780905038000,-166.95,0.00014999,10]
[424444054,1780905038000,-500.0,0.00014999,4]
[424444055,1780905038000,-500.0,0.00014999,5]
[424444052,1780905038000,-500.0,0.00014999,2]
[424444059,1780905038000,-500.0,0.00014999,9]
[424444058,1780905038000,-500.0,0.00014999,8]
[424444033,1780905038000,-500.0,0.00014999,2]
[424444051,1780905038000,-210.0,0.00014999,2]
[424444056,1780905038000,-500.0,0.00014999,6]
[424444057,1780905038000,-500.0,0.00014999,7]
[424444050,1780905038000,-700.0,0.00014999,2]
[424444049,1780905038000,-240.98630425,0.00014999,2]
[424444048,1780905038000,-590.36568154,0.00014999,2]
[424444047,1780905038000,-578.33888544,0.00014999,2]
[424444046,1780905038000,-500.0,0.00014999,2]
[424444053,1780905038000,-500.0,0.00014999,3]
[424444045,1780905038000,-500.0,0.00014999,2]
[424444031,1780905038000,-507.15165324,0.00014999,2]
[424444042,1780905038000,-500.0,0.00014999,2]
[424444029,1780905038000,-1128.06432123,0.00014999,5]
[424444028,1780905038000,-2617.67609917,0.00014999,2]
[424444035,1780905038000,-500.0,0.00014999,2]
[424444036,1780905038000,-500.0,0.00014999,2]
[424444034,1780905038000,-500.0,0.00014999,2]
[424444040,1780905038000,-500.0,0.00014999,2]
[424444041,1780905038000,-500.0,0.00014999,2]
[424444044,1780905038000,-500.0,0.00014999,2]
[424444043,1780905038000,-500.0,0.00014999,2]
[424444037,1780905038000,-500.0,0.00014999,2]
[424444039,1780905038000,-500.0,0.00014999,2]
[424444081,1780905039000,-500.0,0.00014999,2]
[424444086,1780905039000,-309.64428414,0.00014999,2]
[424444084,1780905039000,-500.0,0.00014999,2]
[424444085,1780905039000,-551.97576766,0.00014999,2]
[424444089,1780905039000,-500.0,0.00014999,2]
[424444087,1780905039000,-255.18199672,0.00014999,2]
[424444088,1780905039000,-500.0,0.00014999,2]
[424444093,1780905039000,-500.0,0.00014999,2]
[424444095,1780905039000,-500.0,0.00014999,2]
[424444091,1780905039000,-500.0,0.00014999,2]
[424444092,1780905039000,-500.0,0.00014999,2]
[424444094,1780905039000,-500.0,0.00014999,2]
[424444096,1780905039000,-401.24,0.00014999,2]
[424444106,1780905039000,-507.8,0.00014999,2]
[424444098,1780905039000,-507.8,0.00014999,2]
[424444097,1780905039000,-507.8,0.00014999,2]
[424444082,1780905039000,-500.0,0.00014999,2]
[424444090,1780905039000,-500.0,0.00014999,2]
[424444083,1780905039000,-500.0,0.00014999,2]
[424444103,1780905039000,-500.0,0.00014999,2]
[424444078,1780905039000,-500.0,0.00014999,2]
[424444061,1780905039000,-170.0,0.00014999,2]
[424444063,1780905039000,-150.0,0.00014999,2]
[424444064,1780905039000,-500.0,0.00014999,2]
[424444062,1780905039000,-531.94649365,0.00014999,2]
[424444067,1780905039000,-591.26799592,0.00014999,2]
[424444070,1780905039000,-500.0,0.00014999,2]
[424444069,1780905039000,-238.12837646,0.00014999,2]
[424444065,1780905039000,-221.05414791,0.00014999,2]
[424444068,1780905039000,-500.0,0.00014999,2]
[424444066,1780905039000,-500.0,0.00014999,2]
[424444071,1780905039000,-555.94864711,0.00014999,2]
[424444072,1780905039000,-500.0,0.00014999,2]
[424444075,1780905039000,-500.0,0.00014999,2]
[424444074,1780905039000,-500.0,0.00014999,2]
[424444076,1780905039000,-500.0,0.00014999,2]
[424444080,1780905039000,-500.0,0.00014999,2]
[424444079,1780905039000,-500.0,0.00014999,2]
[424444077,1780905039000,-500.0,0.00014999,2]
[424444099,1780905039000,-507.8,0.00014999,2]
[424444073,1780905039000,-500.0,0.00014999,2]
[424444102,1780905039000,-507.8,0.00014999,2]
[424444121,1780905039000,-507.8,0.00014999,2]
[424444131,1780905039000,-507.8,0.00014999,2]
[424444128,1780905039000,-537.36396798,0.00014999,2]
[424444123,1780905039000,-537.36396798,0.00014999,2]
[424444127,1780905039000,-537.36396798,0.00014999,2]
[424444130,1780905039000,-537.36396798,0.00014999,2]
[424444136,1780905039000,-537.36396798,0.00014999,2]
[424444135,1780905039000,-537.36396798,0.00014999,2]
[424444122,1780905039000,-537.36396798,0.00014999,2]
[424444134,1780905039000,-537.36396798,0.00014999,2]
[424444139,1780905039000,-537.36396798,0.00014999,2]
[424444133,1780905039000,-537.36396798,0.00014999,2]
[424444140,1780905039000,-174.65244033,0.00014999,2]
[424444138,1780905039000,-53.73636046,0.00014999,2]
[424444141,1780905039000,-333.14755967,0.00014999,2]
[424444142,1780905039000,-537.36396798,0.00014999,2]
[424444143,1780905039000,-43.72638829,0.00014999,2]
[424444101,1780905039000,-500.0,0.00014999,2]
[424444137,1780905039000,-483.62760752,0.00014999,2]
[424444129,1780905039000,-537.36396798,0.00014999,2]
[424444132,1780905039000,-537.36396798,0.00014999,2]
[424444124,1780905039000,-537.36396798,0.00014999,2]
[424444100,1780905039000,-500.0,0.00014999,2]
[424444126,1780905039000,-537.36396798,0.00014999,2]
[424444105,1780905039000,-500.0,0.00014999,2]
[424444107,1780905039000,-507.8,0.00014999,2]
[424444108,1780905039000,-500.0,0.00014999,2]
[424444118,1780905039000,-312.86127289,0.00014999,2]
[424444111,1780905039000,-500.0,0.00014999,2]
[424444109,1780905039000,-507.8,0.00014999,2]
[424444110,1780905039000,-500.0,0.00014999,2]
[424444104,1780905039000,-507.8,0.00014999,2]
[424444114,1780905039000,-507.8,0.00014999,2]
[424444113,1780905039000,-556.2651521,0.00014999,2]
[424444117,1780905039000,-537.36396798,0.00014999,2]
[424444112,1780905039000,-507.8,0.00014999,2]
[424444115,1780905039000,-507.8,0.00014999,2]
[424444116,1780905039000,-507.8,0.00014999,2]
[424444120,1780905039000,-537.36396798,0.00014999,2]
[424444125,1780905039000,-537.36396798,0.00014999,2]
[424444119,1780905039000,-500.0,0.00014999,2]
[424444159,1780905040000,-537.36396798,0.00014999,2]
[424444157,1780905040000,-537.36396798,0.00014999,2]
[424444155,1780905040000,-537.36396798,0.00014999,2]
[424444156,1780905040000,-537.36396798,0.00014999,2]
[424444154,1780905040000,-507.8,0.00014999,2]
[424444152,1780905040000,-537.36396798,0.00014999,2]
[424444150,1780905040000,-537.36396798,0.00014999,2]
[424444145,1780905040000,-537.36396798,0.00014999,2]
[424444151,1780905040000,-537.36396798,0.00014999,2]
[424444153,1780905040000,-537.36396798,0.00014999,2]
[424444149,1780905040000,-323.00722424,0.00014999,2]
[424444147,1780905040000,-256.73781653,0.00014968,2]
[424444146,1780905040000,-214.35674374,0.00014999,2]
[424444144,1780905040000,-493.63757969,0.00014999,2]
[424444160,1780905040000,-537.36396798,0.00014999,2]
[424444148,1780905040000,-29105.79374747,0.00014968,2]
[424444158,1780905040000,-537.36396798,0.00014999,2]
[424444177,1780905040000,-537.36396798,0.00014999,2]
[424444162,1780905040000,-507.8,0.00014999,2]
[424444178,1780905040000,-507.8,0.00014999,2]
[424444174,1780905040000,-537.36396798,0.00014999,2]
[424444163,1780905040000,-537.36396798,0.00014999,2]
[424444176,1780905040000,-537.36396798,0.00014999,2]
[424444175,1780905040000,-537.36396798,0.00014999,2]
[424444172,1780905040000,-537.36396798,0.00014999,2]
[424444171,1780905040000,-507.8,0.00014999,2]
[424444173,1780905040000,-537.36396798,0.00014999,2]
[424444169,1780905040000,-537.36396798,0.00014999,2]
[424444168,1780905040000,-537.36396798,0.00014999,2]
[424444164,1780905040000,-537.36396798,0.00014999,2]
[424444167,1780905040000,-537.36396798,0.00014999,2]
[424444165,1780905040000,-537.36396798,0.00014999,2]
[424444166,1780905040000,-537.36396798,0.00014999,2]
[424444161,1780905040000,-537.36396798,0.00014999,2]
[424444170,1780905040000,-537.36396798,0.00014999,2]
[424444186,1780905041000,-537.36396798,0.00014999,2]
[424444189,1780905041000,-300.0,0.00014999,2]
[424444179,1780905041000,-537.36396798,0.00014999,2]
[424444185,1780905041000,-537.36396798,0.00014999,2]
[424444181,1780905041000,-537.36396798,0.00014999,2]
[424444182,1780905041000,-537.36396798,0.00014999,2]
[424444183,1780905041000,-537.36396798,0.00014999,2]
[424444180,1780905041000,-537.36396798,0.00014999,2]
[424444184,1780905041000,-507.8,0.00014999,2]
[424444187,1780905041000,-507.8,0.00014999,2]
[424444188,1780905041000,-507.81,0.00014999,2]
[424444194,1780905041000,-3792.0,0.00015,5]
[424444200,1780905041000,-1571.88,0.00015,2]
[424444195,1780905041000,-2000.0,0.00015,2]
[424444197,1780905041000,-8556.08453729,0.00015,2]
[424444196,1780905041000,-997752.43616751,0.00015,2]
[424444203,1780905041000,-3789724.69378729,0.00015,2]
[424444198,1780905041000,-151.0,0.00015,2]
[424444190,1780905041000,-671.29049354,0.00014999,2]
[424444201,1780905041000,-1004.26684243,0.00015,2]
[424444192,1780905041000,-666.0,0.00014999,2]
[424444199,1780905041000,-6991.40362777,0.00015,2]
[424444193,1780905041000,-4741.0,0.00015,5]
[424444191,1780905041000,-300.0,0.00014999,2]
[424444216,1780905043000,-1356.55572343,0.00015,2]
[424444214,1780905043000,-24849.13067634,0.00015,2]
[424444217,1780905043000,-496.22891818,0.00015,2]
[424444215,1780905043000,-1111.3344762,0.00015,2]
[424444218,1780905049000,-1047.92,0.00015,2]
[424444222,1780905049000,-1662.75401148,0.00015,2]
[424444220,1780905049000,-3797.18737558,0.00015,2]
[424444219,1780905049000,-6328.92184006,0.00015,2]
[424444221,1780905049000,-933.71669306,0.00015,2]
[424444223,1780905061000,1250.0,0.0003,120]
[424444224,1780905077000,1250.0,0.0003,120]
[424444234,1780905095000,1250.0,0.0003,120]
[424444235,1780905112000,1250.0,0.0003,120]
[424444236,1780905125000,1250.0,0.0003,120]
[424444239,1780905144000,1250.0,0.0003,120]
[424444240,1780905172000,1250.0,0.0003,120]
[424444241,1780905186000,1250.0,0.0003,120]
[424444243,1780905199000,1250.0,0.0003,120]
[424444244,1780905213000,1250.0,0.0003,120]
[424444245,1780905215000,156.41949426,0.0003013,120]
[424444246,1780905230000,1250.0,0.0003,120]
[424444247,1780905250000,1250.0,0.0003,120]
[424444248,1780905511000,600.50101,0.000301,120]
[424444249,1780905536000,500.0,0.000301,120]
[424444317,1780906232000,-168.28,0.00013055,2]
[424444318,1780906232000,-150.0,0.00013242,2]
[424444321,1780906232000,-198.79,0.0001355,2]
[424444319,1780906232000,-738.16,0.0001343,2]
[424444324,1780906232000,-437.436765,0.00013589,2]
[424444323,1780906232000,-64964.95917034,0.00013589,2]
[424444322,1780906232000,-150.0,0.00013588,2]
[424444320,1780906232000,-363.98,0.00013491,2]
[424444326,1780906232000,-906.42945608,0.00013589,2]
[424444327,1780906232000,-2850.19285121,0.00013589,2]
[424444325,1780906232000,-1142.86244284,0.00013589,2]
[424444353,1780906238000,-895.89560221,0.00013798,2]
[424444349,1780906238000,-895.89560221,0.00013798,2]
[424444350,1780906238000,-895.89560221,0.00013798,2]
[424444352,1780906238000,-895.89560221,0.00013798,2]
[424444355,1780906238000,-895.89560221,0.00013798,2]
[424444357,1780906238000,-895.89560221,0.00013798,2]
[424444358,1780906238000,-895.89560221,0.00013798,2]
[424444364,1780906238000,-895.89560221,0.00013798,2]
[424444361,1780906238000,-895.89560221,0.00013798,2]
[424444360,1780906238000,-895.89560221,0.00013798,2]
[424444359,1780906238000,-895.89560221,0.00013798,2]
[424444351,1780906238000,-895.89560221,0.00013798,2]
[424444354,1780906238000,-895.89560221,0.00013798,2]
[424444356,1780906238000,-895.89560221,0.00013798,2]
[424444347,1780906238000,-895.89560221,0.00013798,2]
[424444345,1780906238000,-895.89560221,0.00013798,2]
[424444346,1780906238000,-895.89560221,0.00013798,2]
[424444344,1780906238000,-895.89560221,0.00013798,2]
[424444343,1780906238000,-500.0,0.00013798,2]
[424444342,1780906238000,-181.17043474,0.0001373,2]
[424444341,1780906238000,-2724.16720175,0.000137,2]
[424444340,1780906238000,-200.0,0.00013699,2]
[424444339,1780906238000,-166.66,0.00013699,2]
[424444338,1780906238000,-285.3105544,0.00013698,2]
[424444336,1780906238000,-804.61931453,0.00013589,2]